{"text_format":"1","workbook":"xlsx","n_sheets":2,"sheets":["授業アンケート集計マクロ","Graph_I~IV"],"not_rendered":{"charts":8,"images":0,"macros":1,"external_links":0,"defined_names":0,"comments":0,"pivot_tables":0},"unopened":[],"bounds":{"document_bytes":16777216,"sheet_cells":100000,"rows_first":2000,"rows_last":500,"rows_between":2000,"halvings":0,"cell_chars":16384,"cell_head_chars":4096},"cells_cut":0,"cells_raw":0,"read":"whole","date_system":"1900"}

{"sheet":"授業アンケート集計マクロ","index":0,"n_rows":23,"n_cols":6,"rows_kept":23,"cut":false,"hidden":false,"merged":[[21,5,21,14],[22,5,22,14]]}
[]
[]
[]
[null,null,null,null,null,"1. NU-Webにログインして、授業アンケートの集計結果を出力したCSVファイルを保存して下さい。"]
[null,null,null,null,"←","2.「データを読み込み」のボタンを押して下さい。"]
[null,null,null,null,null,"3.保存したファイルを選択します。"]
[null,null,null,null,null,"4.「授業アンケートのCSVファイルを読み込みました」のメッセージが出たら完了です。"]
[]
[]
[]
[null,null,null,null,"←","5.「集計」のボタンを押して下さい。"]
[null,null,null,null,null,"6.「終了しました」のメッセージが出たら完了です。"]
[]
[null,null,null,null,null,"　●「データ」のシートには、読み込んだCSVファイルが表示されます。"]
[null,null,null,null,null,"　●「I～IV」のシートには設問番号1から8までが表示されます。"]
[null,null,null,null,null,"　●「III-8-2」のシートには、設問番号8-2が表示されます。"]
[null,null,null,null,null,"　●「IV-9」のシートには、設問番号9が表示されます。"]
[null,null,null,null,null,"　●「V-10」のシートには、設問番号10が表示されます。"]
[null,null,null,null,null,"　●「V-11」のシートには、設問番号11が表示されます。"]
[]
[null,null,null,null,null,"（注意事項）"]
[null,null,null,null,null,"このプログラムは、全学共通項目に対してグラフを作成します。"]
[null,null,null,null,null,"部局追加項目，科目共通項目及び教員追加項目は、グラフにできませんのでご留意願います。"]

{"sheet":"Graph_I~IV","index":1,"n_rows":79,"n_cols":5,"rows_kept":79,"cut":false,"hidden":true,"merged":[[46,1,46,4],[54,1,54,4],[64,1,64,4],[0,1,0,4],[9,1,9,4],[16,1,16,4],[25,1,25,4],[34,1,34,4]]}
[1,"総合的にみて、あなたはこの授業に満足していますか。5段階で示してください。\nAre you satisfied with this class overall?"]
[null,"回答番号","回答","N","％"]
[null,1,null,{"$f":"#REF!","v":{"$error":"#REF!"}},{"$f":"D3/SUM($D$3:$D$7)","v":{"$error":"#REF!"}}]
[null,2,null,{"$f":"#REF!","v":{"$error":"#REF!"}},{"$f":"D4/SUM($D$3:$D$7)","v":{"$error":"#REF!"}}]
[null,3,null,{"$f":"#REF!","v":{"$error":"#REF!"}},{"$f":"D5/SUM($D$3:$D$7)","v":{"$error":"#REF!"}}]
[null,4,null,{"$f":"#REF!","v":{"$error":"#REF!"}},{"$f":"D6/SUM($D$3:$D$7)","v":{"$error":"#REF!"}}]
[null,5,null,{"$f":"#REF!","v":{"$error":"#REF!"}},{"$f":"D7/SUM($D$3:$D$7)","v":{"$error":"#REF!"}}]
[]
[]
[2,"シラバスをよく読んで履修登録しましたか。\nHow carefully did you read the syllabus of this class before registering for the class?"]
[null,"回答番号","回答","N","％"]
[null,1,null,{"$f":"#REF!","v":{"$error":"#REF!"}},{"$f":"D12/SUM($D$12:$D$14)","v":{"$error":"#REF!"}}]
[null,2,null,{"$f":"#REF!","v":{"$error":"#REF!"}},{"$f":"D13/SUM($D$12:$D$14)","v":{"$error":"#REF!"}}]
[null,3,null,{"$f":"#REF!","v":{"$error":"#REF!"}},{"$f":"D14/SUM($D$12:$D$14)","v":{"$error":"#REF!"}}]
[]
[]
[3,"この授業でどの程度の成績を目標に履修しましたか。\nWhat grade did you decide to aim for in this class?"]
[null,"回答番号","回答","N","％"]
[null,1,null,{"$f":"#REF!","v":{"$error":"#REF!"}},{"$f":"D19/SUM($D$19:$D$23)","v":{"$error":"#REF!"}}]
[null,2,null,{"$f":"#REF!","v":{"$error":"#REF!"}},{"$f":"D20/SUM($D$19:$D$23)","v":{"$error":"#REF!"}}]
[null,3,null,{"$f":"#REF!","v":{"$error":"#REF!"}},{"$f":"D21/SUM($D$19:$D$23)","v":{"$error":"#REF!"}}]
[null,4,null,{"$f":"#REF!","v":{"$error":"#REF!"}},{"$f":"D22/SUM($D$19:$D$23)","v":{"$error":"#REF!"}}]
[null,5,null,{"$f":"#REF!","v":{"$error":"#REF!"}},{"$f":"D23/SUM($D$19:$D$23)","v":{"$error":"#REF!"}}]
[]
[]
[4,"教員に指示された課題に意欲的に取り組みましたか。（予復習やレポート、授業関連の読書、調べ物等を含む）\nHave you been motivated to engage in class assignments (including preparing and/or reviewing the class, writing papers, reading materials, and doing research)?"]
[null,null,"回答","N","％"]
[null,1,null,{"$f":"#REF!","v":{"$error":"#REF!"}},{"$f":"D28/SUM($D$28:$D$32)","v":{"$error":"#REF!"}}]
[null,2,null,{"$f":"#REF!","v":{"$error":"#REF!"}},{"$f":"D29/SUM($D$28:$D$32)","v":{"$error":"#REF!"}}]
[null,3,null,{"$f":"#REF!","v":{"$error":"#REF!"}},{"$f":"D30/SUM($D$28:$D$32)","v":{"$error":"#REF!"}}]
[null,4,null,{"$f":"#REF!","v":{"$error":"#REF!"}},{"$f":"D31/SUM($D$28:$D$32)","v":{"$error":"#REF!"}}]
[null,5,null,{"$f":"#REF!","v":{"$error":"#REF!"}},{"$f":"D32/SUM($D$28:$D$32)","v":{"$error":"#REF!"}}]
[]
[]
[5,"教員に指示された課題について授業時間以外の典型的な週平均学習時間はどれくらいでしたか。（予復習やレポート、授業関連の読書、調べ物等を含む）\nHow long did you spend on class assignments (including preparing and/or reviewing the class, writing papers, reading materials, doing research) in a typical week?"]
[null,null,"回答","N","％"]
[null,1,null,{"$f":"#REF!","v":{"$error":"#REF!"}},{"$f":"D37/SUM($D$37:$D$44)","v":{"$error":"#REF!"}}]
[null,2,null,{"$f":"#REF!","v":{"$error":"#REF!"}},{"$f":"D38/SUM($D$37:$D$44)","v":{"$error":"#REF!"}}]
[null,3,null,{"$f":"#REF!","v":{"$error":"#REF!"}},{"$error":"#REF!"}]
[null,4,null,{"$f":"#REF!","v":{"$error":"#REF!"}},{"$error":"#REF!"}]
[null,5,null,{"$f":"#REF!","v":{"$error":"#REF!"}},{"$error":"#REF!"}]
[null,6,null,{"$f":"#REF!","v":{"$error":"#REF!"}},{"$error":"#REF!"}]
[null,7,null,{"$f":"#REF!","v":{"$error":"#REF!"}},{"$error":"#REF!"}]
[null,8,null,{"$f":"#REF!","v":{"$error":"#REF!"}},{"$error":"#REF!"}]
[]
[]
[6,"授業を受けたことで触発され、関連する事項について調べたり、考えたり、勉強したりすることを頻繁にしましたか。\nHas this class frequently motivated you to do research on, to think over, and/or to study the related topics?"]
[null,null,"回答","N","％"]
[null,1,null,{"$f":"#REF!","v":{"$error":"#REF!"}},{"$f":"D49/SUM($D$49:$D$52)","v":{"$error":"#REF!"}}]
[null,2,null,{"$f":"#REF!","v":{"$error":"#REF!"}},{"$f":"D50/SUM($D$49:$D$52)","v":{"$error":"#REF!"}}]
[null,3,null,{"$f":"#REF!","v":{"$error":"#REF!"}},{"$f":"D51/SUM($D$49:$D$52)","v":{"$error":"#REF!"}}]
[null,4,null,{"$f":"#REF!","v":{"$error":"#REF!"}},{"$f":"D52/SUM($D$49:$D$52)","v":{"$error":"#REF!"}}]
[]
[]
[7,"他の学生との協働作業やディスカッション等に積極的に取り組みましたか。\nHave you actively participated in collaborative work and/or discussion with other students?"]
[null,"回答番号","回答","N","％"]
[null,1,null,{"$f":"#REF!","v":{"$error":"#REF!"}},{"$f":"D57/SUM($D$57:$D$61)","v":{"$error":"#REF!"}}]
[null,2,null,{"$f":"#REF!","v":{"$error":"#REF!"}},{"$f":"D58/SUM($D$57:$D$61)","v":{"$error":"#REF!"}}]
[null,3,null,{"$f":"#REF!","v":{"$error":"#REF!"}},{"$f":"D59/SUM($D$57:$D$61)","v":{"$error":"#REF!"}}]
[null,4,null,{"$f":"#REF!","v":{"$error":"#REF!"}},{"$f":"D60/SUM($D$57:$D$61)","v":{"$error":"#REF!"}}]
[null,5,null,{"$f":"#REF!","v":{"$error":"#REF!"}},{"$f":"D61/SUM($D$57:$D$61)","v":{"$error":"#REF!"}}]
[]
[]
[]
[8,"この授業を通して、あなた自身の行動や態度は変化したと思いますか。（あてはまるものすべてを選択）\nDo you think you have changed in terms of behavior and/or attitudes through this class? (Choose any items from the list that apply.)\n※パーセントは問１のN数を各項目の分母として算出しています。"]
[null,null,"回答","N","％"]
[null,1,null,{"$f":"#REF!","v":{"$error":"#REF!"}},{"$f":"D67/SUM($D$3:$D$7)","v":{"$error":"#REF!"}}]
[null,2,null,{"$f":"#REF!","v":{"$error":"#REF!"}},{"$error":"#REF!"}]
[null,3,null,{"$f":"#REF!","v":{"$error":"#REF!"}},{"$error":"#REF!"}]
[null,4,null,{"$f":"#REF!","v":{"$error":"#REF!"}},{"$error":"#REF!"}]
[null,5,null,{"$f":"#REF!","v":{"$error":"#REF!"}},{"$error":"#REF!"}]
[null,6,null,{"$f":"#REF!","v":{"$error":"#REF!"}},{"$error":"#REF!"}]
[null,7,null,{"$f":"#REF!","v":{"$error":"#REF!"}},{"$error":"#REF!"}]
[null,8,null,{"$f":"#REF!","v":{"$error":"#REF!"}},{"$error":"#REF!"}]
[null,9,null,{"$f":"#REF!","v":{"$error":"#REF!"}},{"$error":"#REF!"}]
[null,10,null,{"$f":"#REF!","v":{"$error":"#REF!"}},{"$error":"#REF!"}]
[null,11,null,{"$f":"#REF!","v":{"$error":"#REF!"}},{"$error":"#REF!"}]
[null,12,null,{"$f":"#REF!","v":{"$error":"#REF!"}},{"$error":"#REF!"}]
[null,13,null,{"$f":"#REF!","v":{"$error":"#REF!"}},{"$error":"#REF!"}]